[Event "XVI Memorial Lezcano Montalvo 2024"]
[Site "Gran Canaria"]
[Date "2024.03.23"]
[Round "1.8"]
[White "Bangiev, Katharina"]
[Black "Tutisani, Noe"]
[Result "0-1"]
[ECO "B70"]
[WhiteElo "1779"]
[BlackElo "2405"]
[Annotator "TA"]
[PlyCount "60"]
[EventDate "2024.03.23"]
[EventType "swiss"]
[EventCountry "ESP"]
[SourceTitle "playchess.com"]
[Source "ChessBase"]
[SourceQuality "1"]
[TimeControl "5400+30"]

{[%evp 17,60,0,-9,-14,-20,-27,-23,-11,-21,-79,-20,-143,-164,-142,-75,-67,-78,-78,-74,-161,-171,-168,-157,-200,-204,-202,-197,-237,-233,-400,-395,-564,-575,-572,-566,-567,-576,-575,-572,-671,-657,-815,-808,-861,-858]} 1. e4 {[%emt 0:00:03]} c5 {[%emt 0:00:18]} 2. Nf3 {[%emt 0:00:06]} d6 {[%emt 0:00:06]} 3. d4 {[%emt 0:00:06]} cxd4 {[%emt 0:00:06]} 4. Nxd4 {[%emt 0:00:05]} Nf6 {[%emt 0:00:07]} 5. Nc3 {[%emt 0:00:09]} g6 {[%emt 0:00:05]} 6. g3 {[%emt 0:01:33]} Bg7 {[%emt 0:00:07]} 7. Bg2 {[%emt 0:00:06]} O-O {[%emt 0:00:06]} 8. O-O {[%emt 0:00:08]} Nc6 {[%emt 0:00:09]} 9. Nxc6 {[%emt 0:03:52]} bxc6 {[%emt 0:00:05]} 10. e5 {[%emt 0:04:28]} dxe5 {[%emt 0:04:48]} 11. Bxc6 {[%emt 0:08:53]} Rb8 {[%emt 0:00:05]} 12. Qxd8 {[%emt 0:02:14] Black has an edge.} Rxd8 {[%emt 0:00:14]} 13. Rb1 {[%emt 0:05:09]} (13. Rd1 $11 Bf5 14. Rxd8+ Rxd8 15. Be3) 13... Bh3 {[%emt 0:10:13]} (13... Ba6 $17 14. Rd1 Rdc8) 14. Re1 {[%emt 0:05:15] [#]} (14. Bg2 $11 {remains equal.} Bf5 15. Be3) 14... Rdc8 $1 $17 {[%emt 0:00:10]} 15. Nd5 {[%emt 0:07:58] [#]} Nxd5 {[%emt 0:05:41]} (15... Rxc6 $2 {loses.} 16. Nxe7+ Kf8 17. Nxc6 $18) ({Better is} 15... Kf8 $1 16. Nxf6 Rxc6) 16. Bxd5 {[%emt 0:00:04]} Rxc2 {[%emt 0:00:32]} 17. Bb3 {[%emt 0:03:57]} Rc7 {[%emt 0:01:36] Black has more active pieces.} 18. f4 {[%emt 0:09:25]} (18. Bg5 $17) 18... Bf5 $36 {[%emt 0:09:48][%mdl 2048] Keeping White busy.} 19. Ra1 {[%emt 0:02:15]} e4 {[%emt 0:00:05]} 20. Re2 {[%emt 0:10:37]} a5 {[%emt 0:00:56]} 21. Be3 {[%emt 0:01:49]} Bd7 {[%emt 0:00:09] White must now prevent ...a4.} 22. Rb1 {[%emt 0:01:44]} a4 {[%emt 0:00:31]} 23. Bd5 {[%emt 0:01:09]} (23. Bc2) 23... Bb5 {[%emt 0:00:04]} 24. Rd2 {[%emt 0:01:32]} (24. Ree1 $142 Bd3 25. Rec1) 24... Bd3 {[%emt 0:00:06] Black is clearly winning.} 25. Rbd1 {[%emt 0:05:02]} Rxb2 {[%emt 0:03:20]} 26. Rxb2 {[%emt 0:01:46]} Bxb2 {[%emt 0:00:08]} 27. Bb6 {[%emt 0:05:07]} Rc2 {[%emt 0:00:24]} 28. Re1 {[%emt 0:01:15]} Bc3 {[%emt 0:00:46]} 29. Rd1 {[%emt 0:01:46]} e6 {[%emt 0:00:54]} 30. Ba8 {[%emt 0:00:30]} Rxa2 {[%emt 0:01:12] Weighted Error Value: White=0.57/Black=0.09 (flawless) .  Mistake:       	White=5     	Black=2      OK:         	White=6     	Black=11     Best:        	White=1     	Black=2      Strong:       	---       	Black=1} 0-1

[Event "XVI Memorial Lezcano Montalvo 2024"]
[Site "Gran Canaria"]
[Date "2024.03.23"]
[Round "1.9"]
[White "Lianes Garcia, Marcos"]
[Black "Grube, Kurt"]
[Result "1-0"]
[ECO "B20"]
[WhiteElo "2398"]
[BlackElo "1773"]
[Annotator "TA"]
[PlyCount "69"]
[EventDate "2024.03.23"]
[EventType "swiss"]
[EventCountry "ESP"]
[SourceTitle "playchess.com"]
[Source "ChessBase"]
[SourceQuality "1"]
[TimeControl "5400+30"]

{[%evp 9,69,16,5,13,15,-2,7,-13,71,25,118,108,123,121,102,126,147,146,137,117,166,166,170,169,173,158,202,201,208,209,320,319,356,355,374,328,316,325,343,341,359,352,401,399,409,406,410,399,404,392,416,426,557,540,546,542,630,630,890,881,874,868]} 1. e4 {[%emt 0:00:04]} c5 {[%emt 0:00:04]} 2. g3 {[%emt 0:00:04]} Nc6 {[%emt 0:00:07]} 3. Bg2 {[%emt 0:00:05]} Nf6 {[%emt 0:00:24]} 4. Ne2 {[%emt 0:00:07]} e5 {[%emt 0:00:29]} 5. O-O {[%emt 0:00:37]} d5 {[%emt 0:02:15]} 6. exd5 {[%emt 0:00:38]} Nxd5 {[%emt 0:00:03]} 7. c3 {[%emt 0:00:53]} Be7 {[%emt 0:03:45]} 8. d4 {[%emt 0:00:06] The position is equal.} Be6 {[%emt 0:02:23]} (8... exd4 $11 {remains equal.} 9. cxd4 O-O) 9. c4 {[%emt 0:01:51]} (9. dxe5 $16 O-O 10. Re1) 9... exd4 {[%emt 0:03:57]} (9... cxd4 $1 $11 10. cxd5 (10. Bxd5 Bxd5 11. cxd5 Qxd5 $11) 10... Bxd5) 10. cxd5 $16 {[%emt 0:00:13]} Bxd5 {[%emt 0:00:06]} 11. Bxd5 {[%emt 0:00:24]} Qxd5 {[%emt 0:00:03]} 12. Nf4 {[%emt 0:00:05]} Qd7 {[%emt 0:01:57]} 13. Nd2 {[%emt 0:00:09]} O-O {[%emt 0:01:04]} 14. Qf3 {[%emt 0:00:32]} Rad8 {[%emt 0:03:13]} (14... Bg5 $16) 15. Nd3 $18 {[%emt 0:00:32]} b6 {[%emt 0:11:06]} 16. Re1 {[%emt 0:01:20]} f6 {[%emt 0:04:27][%cal Bf7f6,Bf6e5][%mdl 32]} 17. b3 {[%emt 0:00:16]} Bd6 {[%emt 0:05:45]} 18. Nc4 {[%emt 0:00:17] [#] Black must now prevent Qd5+.} Ne5 {[%emt 0:04:03]} 19. Qd5+ {[%emt 0:01:14]} Kh8 {[%emt 0:00:31]} (19... Nf7 $142 20. Bd2 Bc7 21. Qxd7 Rxd7) 20. Ndxe5 {[%emt 0:00:21]} fxe5 {[%emt 0:00:20]} 21. Nxd6 {[%emt 0:00:22][%cal Oc1g5] And now Bg5! would win.} ({Resist} 21. Nxe5 Qf5 22. f4 (22. Bf4 g5 $16) 22... Bxe5 23. Qxe5 Qg6 $18) 21... Rf6 {[%emt 0:01:39]} 22. Nf7+ {[%emt 0:00:49]} Rxf7 {[%emt 0:00:13]} 23. Qxd7 {[%emt 0:00:05]} Rfxd7 {[%emt 0:00:18]} 24. Rxe5 {[%emt 0:00:07]} h6 {[%emt 0:00:56]} 25. Bd2 {[%emt 0:00:05]} Rc8 {[%emt 0:02:32]} 26. Rc1 {[%emt 0:00:19]} Kg8 {[%emt 0:01:17]} 27. Kf1 {[%emt 0:00:06]} Kf7 {[%emt 0:00:40]} 28. Ke2 {[%emt 0:00:04]} Kf6 {[%emt 0:02:50]} 29. Re4 {[%emt 0:00:06]} Rcd8 {[%emt 0:02:51]} 30. Kd3 {[%emt 0:00:02]} g5 {[%emt 0:01:59] White is clearly winning.} 31. Rce1 {[%emt 0:00:05]} Rd6 {[%emt 0:00:38]} 32. h4 {[%emt 0:00:10]} gxh4 {[%emt 0:04:07]} 33. Rxh4 {[%emt 0:00:04]} Kg7 {[%emt 0:04:21]} 34. Re7+ {[%emt 0:00:05]} Kf8 {[%emt 0:00:47]} 35. Rxa7 {[%emt 0:00:07] Black did not feel at home in the position after the opening.   Weighted Error Value: White=0.08 (flawless) /Black=0.40.  Mistake:       	White=1     	Black=4      Inaccurate:     	---       	Black=2      OK:         	White=18    	Black=1      Best:        	---       	Black=1} 1-0

[Event "XVI Memorial Lezcano Montalvo 2024"]
[Site "Gran Canaria"]
[Date "2024.03.23"]
[Round "1.10"]
[White "Lorenzo Ventura, Abel"]
[Black "Sanz Wawer, Daniel"]
[Result "0-1"]
[ECO "A48"]
[WhiteElo "1772"]
[BlackElo "2397"]
[Annotator "TA"]
[PlyCount "62"]
[EventDate "2024.03.23"]
[EventType "swiss"]
[EventCountry "ESP"]
[SourceTitle "playchess.com"]
[Source "ChessBase"]
[SourceQuality "1"]
[TimeControl "5400+30"]

{[%evp 9,62,16,18,10,36,37,37,35,37,0,0,0,48,0,-11,-26,-19,-25,-18,-35,-42,-21,0,-26,3,-39,-39,-68,-70,-98,-97,-152,-153,-158,-155,-155,-138,-124,-126,-445,-452,-453,-445,-457,-460,-1839,-1742,-2253,-2112,-29969,-7092,-29991,-29992,-29995,-29996]} 1. d4 {[%emt 0:00:04]} Nf6 {[%emt 0:00:06]} 2. Bf4 {[%emt 0:00:52]} g6 {[%emt 0:00:36]} 3. Nf3 {[%emt 0:00:21]} d6 {[%emt 0:01:10]} 4. e3 {[%emt 0:01:01]} Nh5 {[%emt 0:00:14]} 5. Bg5 {[%emt 0:00:46][%cal Bf4g5,Bg5h4,Bh4g3][%mdl 32]} h6 {[%emt 0:00:13]} 6. Bh4 {[%emt 0:00:07]} g5 {[%emt 0:00:13]} 7. Nfd2 {[%emt 0:01:45]} Ng7 {[%emt 0:00:07]} 8. Bg3 {[%emt 0:00:37] White is slightly better.} Nf5 {[%emt 0:00:12]} 9. c3 {[%emt 0:06:07]} h5 {[%emt 0:03:05] Hoping for ...h4.} 10. e4 {[%emt 0:01:44]} Nxd4 {[%emt 0:04:25]} (10... h4 $11) 11. cxd4 {[%emt 0:05:53]} ({Better is} 11. h4 $1 $14 gxh4 12. Rxh4) 11... h4 $11 {[%emt 0:00:07]} 12. Bc4 {[%emt 0:07:23][%cal Og3h4]} hxg3 {[%emt 0:00:37]} 13. fxg3 {[%emt 0:03:35]} e6 {[%emt 0:00:11]} 14. Nc3 {[%emt 0:02:58]} (14. O-O {is more complex.} Bg7 15. Nb3 c5 16. Qf3) 14... Nc6 {[%emt 0:03:09]} 15. Nb3 {[%emt 0:11:47]} Bg7 {[%emt 0:01:35]} 16. Qd2 {[%emt 0:07:39]} Qe7 {[%emt 0:02:58]} 17. O-O-O {[%emt 0:16:59]} Bd7 {[%emt 0:03:48]} 18. Nb5 {[%emt 0:06:03]} O-O-O {[%emt 0:02:57]} 19. Na5 {[%emt 0:09:07]} Kb8 {[%emt 0:06:34][%cal Od6d5]} 20. h3 {[%emt 0:06:14] [#]} (20. Nxc6+ $142 bxc6 (20... Bxc6 21. Nc3 $17) 21. Nc3) 20... g4 $1 $17 {[%emt 0:09:29][%mdl 512] ...Bh6 is the strong threat.} 21. Kb1 {[%emt 0:01:17]} gxh3 {[%emt 0:02:53]} 22. gxh3 {[%emt 0:00:40] [#]} d5 $1 {[%emt 0:04:23][%mdl 512]} 23. exd5 {[%emt 0:02:16]} exd5 {[%emt 0:01:00]} 24. Qf4 $2 {[%emt 0:03:38][%mdl 8192] This costs White the game.} Be6 $19 {[%emt 0:04:13] A strong pair of Bishops.} ({Worse is} 24... Nxa5 25. Qxc7+ (25. Bxd5 $2 {too greedy.} Bxb5 26. Qxf7 Qxf7 $19) 25... Ka8 26. Qxa5 Bxb5 27. Bxb5 $11) 25. Nxc6+ {[%emt 0:01:10]} bxc6 {[%emt 0:00:13]} 26. Nxa7 {[%emt 0:02:14]} Kxa7 {[%emt 0:00:22]} (26... dxc4 $2 {is the wrong capture.} 27. Nxc6+ Ka8 28. Nxe7 $18) 27. Rd3 {[%emt 0:01:00]} (27. Bf1 $142) 27... dxc4 {[%emt 0:00:51]} 28. Ra3+ {[%emt 0:00:03]} Kb7 {[%emt 0:00:53]} 29. d5 {[%emt 0:01:08]} Bxd5 {[%emt 0:00:26]} 30. Rf1 {[%emt 0:00:29]} Be4+ {[%emt 0:00:19]} 31. Ka1 {[%emt 0:00:02]} Qxa3 {[%emt 0:00:23] Weighted Error Value: White=1.25/Black=0.06 (flawless) .  Loses game:     	White=1     	---        Mistake:       	White=3     	Black=1      Inaccurate:     	White=5     	Black=2      OK:         	White=6     	Black=11     Best:        	---       	Black=3} 0-1

[Event "XVI Memorial Lezcano Montalvo 2024"]
[Site "Gran Canaria"]
[Date "2024.03.23"]
[Round "1.11"]
[White "Barlov, Dragan"]
[Black "Yuan, Yingjie"]
[Result "1-0"]
[ECO "B38"]
[WhiteElo "2387"]
[BlackElo "1771"]
[Annotator "RC"]
[PlyCount "38"]
[EventDate "2024.03.23"]
[EventType "swiss"]
[EventCountry "ESP"]
[SourceTitle "playchess.com"]
[Source "ChessBase"]
[SourceQuality "1"]
[TimeControl "5400+30"]

1. c4 {[%emt 0:00:07]} c5 {[%emt 0:00:17]} 2. Nf3 {[%emt 0:00:15]} Nc6 {[%emt 0:00:37]} 3. d4 {[%emt 0:00:19]} cxd4 {[%emt 0:00:24]} 4. Nxd4 {[%emt 0:00:11]} g6 {[%emt 0:00:34]} 5. e4 {[%emt 0:01:13]} Bg7 {[%emt 0:00:23]} 6. Be3 {[%emt 0:00:08]} Nf6 {[%emt 0:02:13]} 7. Nc3 {[%emt 0:00:20]} O-O {[%emt 0:01:35]} 8. Be2 {[%emt 0:01:31]} d6 {[%emt 0:01:18]} 9. O-O {[%emt 0:00:50]} h5 {[%emt 0:03:17]} 10. Qd2 {[%emt 0:32:27]} Ng4 {[%emt 1:24:52]} 11. Bxg4 {[%emt 0:00:25]} Bxg4 {[%emt 0:00:00]} 12. f3 {[%emt 0:00:42]} Bd7 {[%emt 0:00:00]} 13. Rfd1 {[%emt 0:02:11]} Kh7 {[%emt 0:00:00]} 14. Qf2 {[%emt 0:04:50]} Rc8 {[%emt 0:00:00]} 15. b3 {[%emt 0:00:52]} a6 {[%emt 0:00:00]} 16. Rac1 {[%emt 0:01:21]} e6 {[%emt 0:00:00]} 17. Nde2 {[%emt 0:02:35]} Qe7 {[%emt 0:00:00]} 18. c5 {[%emt 0:01:12]} Ne5 {[%emt 0:00:00]} 19. cxd6 {[%emt 0:03:13]} Kg8 {[%emt 0:04:30]} 1-0

[Event "XVI Memorial Lezcano Montalvo 2024"]
[Site "Gran Canaria"]
[Date "2024.03.23"]
[Round "1.12"]
[White "Perez Betancor, Jose Luis"]
[Black "Garcia Blanco, Omar"]
[Result "0-1"]
[ECO "B22"]
[WhiteElo "1765"]
[BlackElo "2377"]
[Annotator "RC"]
[PlyCount "50"]
[EventDate "2024.03.23"]
[EventType "swiss"]
[EventCountry "ESP"]
[SourceTitle "playchess.com"]
[Source "ChessBase"]
[SourceQuality "1"]
[TimeControl "5400+30"]

1. e4 {[%emt 0:00:02]} c5 {[%emt 0:00:10]} 2. d4 {[%emt 0:00:09]} cxd4 {[%emt 0:00:09]} 3. c3 {[%emt 0:00:07]} Nf6 {[%emt 0:00:14]} 4. e5 {[%emt 0:00:09]} Nd5 {[%emt 0:00:07]} 5. Qxd4 {[%emt 0:00:16]} e6 {[%emt 0:00:17]} 6. Nf3 {[%emt 0:00:15]} Nc6 {[%emt 0:00:18]} 7. Qe4 {[%emt 0:00:39]} f5 {[%emt 0:00:15]} 8. Qe2 {[%emt 0:00:13]} Be7 {[%emt 0:02:32]} 9. g3 {[%emt 0:00:25]} b5 {[%emt 0:00:16]} 10. Bg2 {[%emt 0:00:15]} a5 {[%emt 0:00:14]} 11. O-O {[%emt 0:00:24]} Ba6 {[%emt 0:00:40]} 12. Nbd2 {[%emt 0:01:17]} a4 {[%emt 0:02:20]} 13. Rd1 {[%emt 0:01:35]} O-O {[%emt 0:05:20]} 14. Nd4 {[%emt 0:00:56]} b4 {[%emt 0:04:02]} 15. Nxc6 {[%emt 0:00:47]} Bxe2 {[%emt 0:00:37]} 16. Nxd8 {[%emt 0:00:11]} Bxd1 {[%emt 0:00:27]} 17. Nb7 {[%emt 0:00:42]} bxc3 {[%emt 0:02:08]} 18. bxc3 {[%emt 0:01:03]} Rab8 {[%emt 0:00:31]} 19. Nd6 {[%emt 0:00:21]} Bxd6 {[%emt 0:01:32]} 20. exd6 {[%emt 0:00:15]} Nxc3 {[%emt 0:00:37]} 21. Nf3 {[%emt 0:00:37]} Ne2+ {[%emt 0:01:31]} 22. Kf1 {[%emt 0:00:17]} Nxc1 {[%emt 0:00:07]} 23. Rxc1 {[%emt 0:00:06]} Bxf3 {[%emt 0:00:07]} 24. Bxf3 {[%emt 0:00:11]} Rfc8 {[%emt 0:00:28]} 25. Rd1 {[%emt 0:00:33]} Rc2 {[%emt 0:00:45]} 0-1

[Event "XVI Memorial Lezcano Montalvo 2024"]
[Site "Gran Canaria"]
[Date "2024.03.23"]
[Round "1.13"]
[White "Fiorito, Francisco"]
[Black "Quevedo Olivares, Carlos Tomas"]
[Result "1-0"]
[ECO "D02"]
[WhiteElo "2368"]
[BlackElo "1763"]
[Annotator "RC"]
[PlyCount "71"]
[EventDate "2024.03.23"]
[EventType "swiss"]
[EventCountry "ESP"]
[SourceTitle "playchess.com"]
[Source "ChessBase"]
[SourceQuality "1"]
[TimeControl "5400+30"]

1. Nf3 {[%emt 0:00:06]} g6 {[%emt 0:00:05]} 2. d4 {[%emt 0:00:21]} Bg7 {[%emt 0:00:05]} 3. Bf4 {[%emt 0:00:04]} d5 {[%emt 0:00:51]} 4. e3 {[%emt 0:00:10]} c5 {[%emt 0:00:35]} 5. c3 {[%emt 0:00:21]} Nc6 {[%emt 0:00:48]} 6. Nbd2 {[%emt 0:01:20]} Bf5 {[%emt 0:03:06]} 7. Qb3 {[%emt 0:03:45]} Qb6 {[%emt 0:04:42]} 8. dxc5 {[%emt 0:01:19]} Qxb3 {[%emt 0:01:34]} 9. axb3 {[%emt 0:00:38]} e5 {[%emt 0:00:47]} 10. Bg3 {[%emt 0:00:11]} a6 {[%emt 0:00:12]} 11. b4 {[%emt 0:01:04]} e4 {[%emt 0:04:59]} 12. Nd4 {[%emt 0:00:40]} Nxd4 {[%emt 0:02:37]} 13. cxd4 {[%emt 0:00:09]} Ne7 {[%emt 0:00:29]} 14. b5 {[%emt 0:00:41]} a5 {[%emt 0:00:16]} 15. Be2 {[%emt 0:00:30]} O-O {[%emt 0:01:42]} 16. O-O {[%emt 0:00:28]} Bd7 {[%emt 0:00:57]} 17. Ra3 {[%emt 0:00:39]} g5 {[%emt 0:01:37]} 18. Rfa1 {[%emt 0:00:18]} f5 {[%emt 0:00:22]} 19. Bd6 {[%emt 0:00:02]} Rae8 {[%emt 0:01:32]} 20. Bh5 {[%emt 0:00:13]} Bxb5 {[%emt 0:01:29]} 21. Bxe8 {[%emt 0:00:06]} Rxe8 {[%emt 0:00:19]} 22. Rxa5 {[%emt 0:00:05]} Bc6 {[%emt 0:00:57]} 23. b4 {[%emt 0:01:23]} Nc8 {[%emt 0:03:20]} 24. b5 {[%emt 0:00:31]} Bd7 {[%emt 0:01:43]} 25. Bc7 {[%emt 0:00:07]} f4 {[%emt 0:02:28]} 26. c6 {[%emt 0:00:43]} bxc6 {[%emt 0:01:22]} 27. b6 {[%emt 0:00:01]} Nxb6 {[%emt 0:05:04]} 28. Bxb6 {[%emt 0:00:08]} h5 {[%emt 0:00:55]} 29. Ra8 {[%emt 0:00:07]} Bc8 {[%emt 0:00:08]} 30. Rc1 {[%emt 0:00:01]} Bd7 {[%emt 0:01:22]} 31. Rxe8+ {[%emt 0:00:07]} Bxe8 {[%emt 0:00:16]} 32. Ra1 {[%emt 0:00:01]} Kh7 {[%emt 0:00:31]} 33. Ra8 {[%emt 0:00:02]} Bd7 {[%emt 0:00:31]} 34. Rd8 {[%emt 0:00:04]} Be6 {[%emt 0:00:20]} 35. Rd6 {[%emt 0:00:01]} Bg8 {[%emt 0:00:49]} 36. Rxc6 {[%emt 0:00:03]} 1-0

[Event "XVI Memorial Lezcano Montalvo 2024"]
[Site "Gran Canaria"]
[Date "2024.03.23"]
[Round "1.14"]
[White "Mukhi Talreja, Ishita Tina"]
[Black "Larino Nieto, David"]
[Result "0-1"]
[ECO "A41"]
[WhiteElo "1755"]
[BlackElo "2365"]
[Annotator "RC"]
[PlyCount "76"]
[EventDate "2024.03.23"]
[EventType "swiss"]
[EventCountry "ESP"]
[SourceTitle "playchess.com"]
[Source "ChessBase"]
[SourceQuality "1"]
[TimeControl "5400+30"]

1. d4 {[%emt 0:00:12]} d6 {[%emt 0:00:06]} 2. Nf3 {[%emt 0:00:24]} b6 {[%emt 0:00:41]} 3. e3 {[%emt 0:01:24]} Bb7 {[%emt 0:00:04]} 4. b3 {[%emt 0:01:30]} a5 {[%emt 0:00:38]} 5. a3 {[%emt 0:05:14]} Nd7 {[%emt 0:00:44]} 6. Bb2 {[%emt 0:06:19]} Ngf6 {[%emt 0:00:02]} 7. Nbd2 {[%emt 0:02:46]} e6 {[%emt 0:01:44]} 8. Be2 {[%emt 0:04:17]} Rg8 {[%emt 0:00:30]} 9. c4 {[%emt 0:03:07]} g5 {[%emt 0:00:11]} 10. Rg1 {[%emt 0:06:14]} g4 {[%emt 0:01:15]} 11. Nh4 {[%emt 0:01:19]} h5 {[%emt 0:00:26]} 12. Qc2 {[%emt 0:03:19]} d5 {[%emt 0:01:52]} 13. g3 {[%emt 0:12:07]} Rc8 {[%emt 0:00:56]} 14. Bd3 {[%emt 0:07:54]} c5 {[%emt 0:00:28]} 15. Qb1 {[%emt 0:05:32]} cxd4 {[%emt 0:00:12]} 16. exd4 {[%emt 0:06:02]} Bh6 {[%emt 0:00:04]} 17. a4 {[%emt 0:08:48]} Bxd2+ {[%emt 0:06:56]} 18. Kxd2 {[%emt 0:00:17]} Ne4+ {[%emt 0:00:03]} 19. Bxe4 {[%emt 0:01:11]} dxe4 {[%emt 0:00:02]} 20. Re1 {[%emt 0:03:00]} Nc5 {[%emt 0:00:14]} 21. Bc3 {[%emt 0:03:51]} Nd3 {[%emt 0:00:27]} 22. Re2 {[%emt 0:02:50]} e5 {[%emt 0:01:19]} 23. Nf5 {[%emt 0:07:35]} Qf6 {[%emt 0:01:34]} 24. Qxd3 {[%emt 0:01:15]} exd3 {[%emt 0:00:40]} 25. Rxe5+ {[%emt 0:01:00]} Kd7 {[%emt 0:00:02]} 26. d5 {[%emt 0:01:30]} Rg5 {[%emt 0:00:41]} 27. Re7+ {[%emt 0:01:53]} Qxe7 {[%emt 0:00:02]} 28. Nxe7 {[%emt 0:00:12]} Kxe7 {[%emt 0:00:02]} 29. Re1+ {[%emt 0:00:17]} Kd7 {[%emt 0:01:14]} 30. Bf6 {[%emt 0:00:30]} Rf5 {[%emt 0:00:06]} 31. Bd4 {[%emt 0:01:19]} b5 {[%emt 0:02:17]} 32. axb5 {[%emt 0:00:36]} Bxd5 {[%emt 0:00:02]} 33. Kxd3 {[%emt 0:01:28]} Be6 {[%emt 0:00:45]} 34. Ra1 {[%emt 0:00:35]} Ra8 {[%emt 0:00:14]} 35. b4 {[%emt 0:01:23]} Rc8 {[%emt 0:00:28]} 36. c5 {[%emt 0:00:23]} axb4 {[%emt 0:00:24]} 37. Ra7+ {[%emt 0:00:51]} Rc7 {[%emt 0:00:02]} 38. Ra6 {[%emt 0:00:21]} Rfxc5 {[%emt 0:00:09]} 0-1

[Event "XVI Memorial Lezcano Montalvo 2024"]
[Site "Gran Canaria"]
[Date "2024.03.23"]
[Round "1.15"]
[White "Akhvlediani, Irakli"]
[Black "Santos Falcon, Jose"]
[Result "0-1"]
[ECO "B06"]
[WhiteElo "2356"]
[BlackElo "1749"]
[Annotator "RC"]
[PlyCount "72"]
[EventDate "2024.03.23"]
[EventType "swiss"]
[EventCountry "ESP"]
[SourceTitle "playchess.com"]
[Source "ChessBase"]
[SourceQuality "1"]
[TimeControl "5400+30"]

1. d4 {[%emt 0:00:12]} g6 {[%emt 0:00:07]} 2. Nf3 {[%emt 0:00:14]} Bg7 {[%emt 0:00:08]} 3. e4 {[%emt 0:00:26]} d6 {[%emt 0:00:05]} 4. Be2 {[%emt 0:00:36]} Nf6 {[%emt 0:00:20]} 5. Qd3 {[%emt 0:01:13]} O-O {[%emt 0:02:26]} 6. Bg5 {[%emt 0:00:14]} Nc6 {[%emt 0:02:44]} 7. a3 {[%emt 0:00:50]} h6 {[%emt 0:01:05]} 8. Bh4 {[%emt 0:00:11]} e5 {[%emt 0:02:40]} 9. d5 {[%emt 0:00:53]} Ne7 {[%emt 0:00:06]} 10. Nbd2 {[%emt 0:01:12]} Nh7 {[%emt 0:00:17]} 11. h3 {[%emt 0:01:12]} f5 {[%emt 0:03:01]} 12. O-O {[%emt 0:02:17]} g5 {[%emt 0:01:09]} 13. Bg3 {[%emt 0:00:11]} f4 {[%emt 0:00:09]} 14. Bh2 {[%emt 0:00:05]} h5 {[%emt 0:00:54]} 15. c4 {[%emt 0:01:38]} Ng6 {[%emt 0:03:22]} 16. b4 {[%emt 0:02:10]} g4 {[%emt 0:01:51]} 17. Ne1 {[%emt 0:01:29]} Qh4 {[%emt 0:06:05]} 18. c5 {[%emt 0:03:47]} gxh3 {[%emt 0:01:55]} 19. g3 {[%emt 0:01:12]} Qg5 {[%emt 0:02:35]} 20. Nef3 {[%emt 0:00:59]} Qe7 {[%emt 0:00:25]} 21. cxd6 {[%emt 0:01:13]} cxd6 {[%emt 0:00:07]} 22. Rac1 {[%emt 0:00:16]} fxg3 {[%emt 0:02:58]} 23. fxg3 {[%emt 0:01:14]} Bg4 {[%emt 1:07:31]} 24. Rc3 {[%emt 0:00:59]} Rf7 {[%emt 0:00:00]} 25. Rfc1 {[%emt 1:18:17]} Raf8 {[%emt 0:00:00]} 26. Qb5 {[%emt 0:00:00]} Bh6 {[%emt 0:00:00]} 27. Rc7 {[%emt 0:00:00]} Qxc7 {[%emt 0:00:00]} 28. Rxc7 {[%emt 0:00:00]} Rxc7 {[%emt 0:00:00]} 29. Nc4 {[%emt 0:00:00]} Bxf3 {[%emt 0:00:00]} 30. Bxf3 {[%emt 0:00:00]} Rxf3 {[%emt 0:00:00]} 31. Kh1 {[%emt 0:00:00]} Nhf8 {[%emt 0:00:00]} 32. Nxd6 {[%emt 0:00:00]} Rc1+ {[%emt 0:00:00]} 33. Bg1 {[%emt 0:00:00]} Rxg3 {[%emt 0:00:00]} 34. Qxb7 {[%emt 0:00:00]} Rcxg1+ {[%emt 0:00:00]} 35. Kh2 {[%emt 0:00:00]} R3g2+ {[%emt 0:00:00]} 36. Kxh3 {[%emt 0:00:00]} Nf4+ {[%emt 0:00:00]} 0-1

[Event "XVI Memorial Lezcano Montalvo 2024"]
[Site "Gran Canaria"]
[Date "2024.03.23"]
[Round "1.16"]
[White "Julien Casteleiro, Ariel"]
[Black "Loiacono, Leonardo"]
[Result "0-1"]
[ECO "E08"]
[WhiteElo "1739"]
[BlackElo "2316"]
[Annotator "RC"]
[PlyCount "57"]
[EventDate "2024.03.23"]
[EventType "swiss"]
[EventCountry "ESP"]
[SourceTitle "playchess.com"]
[Source "ChessBase"]
[SourceQuality "1"]
[TimeControl "5400+30"]

1. d4 {[%emt 0:00:07]} e6 {[%emt 0:00:46]} 2. c4 {[%emt 0:00:05]} d5 {[%emt 0:00:51]} 3. Nf3 {[%emt 0:00:09]} Be7 {[%emt 0:00:23]} 4. g3 {[%emt 0:00:06]} Nf6 {[%emt 0:00:27]} 5. Bg2 {[%emt 0:00:04]} c6 {[%emt 0:00:14]} 6. Qc2 {[%emt 0:00:13]} b6 {[%emt 0:01:19]} 7. O-O {[%emt 0:00:51]} Bb7 {[%emt 0:00:14]} 8. Rd1 {[%emt 0:00:28]} Nbd7 {[%emt 0:01:14]} 9. Bf4 {[%emt 0:00:28]} Rc8 {[%emt 0:02:23]} 10. Nc3 {[%emt 0:00:36]} O-O {[%emt 0:01:01]} 11. Ne5 {[%emt 0:00:16]} Nh5 {[%emt 0:01:48]} 12. Bc1 {[%emt 0:01:33]} g6 {[%emt 0:02:17]} 13. Bh6 {[%emt 0:11:36]} Ng7 {[%emt 0:00:23]} 14. e4 {[%emt 0:01:26]} Qc7 {[%emt 0:08:49]} 15. exd5 {[%emt 0:17:32]} Nxe5 {[%emt 0:03:13]} 16. dxe5 {[%emt 0:00:53]} exd5 {[%emt 0:03:03]} 17. cxd5 {[%emt 0:00:18]} Qxe5 {[%emt 0:01:17]} 18. Re1 {[%emt 0:02:54]} Qc7 {[%emt 0:01:26]} 19. dxc6 {[%emt 0:00:23]} Bxc6 {[%emt 0:08:16]} 20. Bxc6 {[%emt 0:00:13]} Qxc6 {[%emt 0:00:02]} 21. Bxg7 {[%emt 0:00:17]} Rfe8 {[%emt 0:03:06]} 22. Bd4 {[%emt 0:00:15]} Bf6 {[%emt 0:01:00]} 23. Bxf6 {[%emt 0:00:10]} Qxf6 {[%emt 0:00:08]} 24. Rxe8+ {[%emt 0:00:05]} Rxe8 {[%emt 0:00:06]} 25. Rd1 {[%emt 0:00:11]} Qf3 {[%emt 0:01:10]} 26. Qd2 {[%emt 0:00:24]} Rc8 {[%emt 0:01:04]} 27. Qd3 {[%emt 0:00:13]} Qg4 {[%emt 0:00:52]} 28. Qd4 {[%emt 0:00:25]} Qh5 {[%emt 0:00:52]} 29. Nd5 {[%emt 0:00:10]} 0-1